bitfinex/quotes_SOLUSD_20230116
["timestamp","ask_amount","ask_price","bid_price","bid_amount"]
[1673876534125,32.14,23.353,23.34,24.9]
[1673876534332,32.14,23.355,23.331,17.0]
[1673876534555,17.0,23.354,23.331,17.0]
[1673876534974,32.14,23.353,23.331,17.0]
[1673876537281,32.14,23.355,23.331,17.0]
[1673876537495,112.1484,23.356,23.331,17.0]
[1673876537708,112.1484,23.356,23.34,25.02]
[1673876538654,32.14,23.355,23.332,20.0]
[1673876538868,42.08346551,23.355,23.331,20.0]
[1673876539081,32.14,23.355,23.34,24.95]
[1673876539286,112.1484,23.356,23.34,24.95]
[1673876540666,42.08346551,23.355,23.34,24.95]
[1673876540863,42.08346551,23.355,23.331,20.0]
[1673876541819,42.08346551,23.355,23.332,17.0]
[1673876542035,42.08346551,23.355,23.333,20.0]
[1673876542223,32.14,23.355,23.34,24.9]
[1673876544346,32.13,23.36,23.341,17.0]
[1673876546865,32.13,23.36,23.34,24.9]
[1673876549408,17.0,23.359,23.34,24.9]
[1673876549830,32.14,23.358,23.34,24.9]
[1673876550037,17.0,23.357,23.34,24.9]
[1673876550439,32.14,23.356,23.34,24.9]
[1673876550778,17.0,23.355,23.34,24.9]
[1673876551186,32.14,23.354,23.34,24.9]
[1673876551394,17.0,23.353,23.34,24.9]
[1673876551809,32.15,23.352,23.34,24.9]
[1673876552024,49.14,23.354,23.34,24.9]
[1673876552237,32.15,23.351,23.34,24.9]
[1673876552455,32.14,23.353,23.34,24.9]
[1673876552665,17.0,23.352,23.34,24.9]
[1673876553302,32.15,23.351,23.34,24.9]
[1673876553723,17.0,23.352,23.333,20.0]
[1673876554043,17.0,23.354,23.331,20.0]
[1673876554567,32.14,23.353,23.331,20.0]
[1673876554751,32.14,23.353,23.332,17.0]
[1673876554964,90.0023,23.361,23.34,24.95]
[1673876554965,32.13,23.36,23.34,24.95]
[1673876555187,32.14,23.357,23.34,24.95]
[1673876555399,32.13,23.36,23.341,17.0]
[1673876556225,32.13,23.36,23.34,24.95]
[1673876556439,32.13,23.36,23.341,17.0]
[1673876557072,32.13,23.36,23.34,24.95]
[1673876557384,32.13,23.36,23.341,17.0]
[1673876558033,17.0,23.359,23.34,24.95]
[1673876558437,32.14,23.358,23.34,24.95]
[1673876560352,17.0,23.357,23.34,24.95]
[1673876560771,32.14,23.356,23.34,24.95]
[1673876561822,32.14,23.356,23.294,402.0]
[1673876561823,128.2,23.349,23.294,402.0]
[1673876562034,16.62,23.34,23.301,41.669]
[1673876562234,17.0,23.339,23.31,16.64]
[1673876562439,70.62196354,23.339,23.31,16.64]
[1673876562769,9.94346551,23.338,23.31,16.64]
[1673876562969,17.0,23.337,23.31,16.64]
[1673876563174,170.11831591,23.337,23.31,16.64]
[1673876563392,197.59186001,23.336,23.31,16.64]
[1673876563607,17.0,23.335,23.31,16.64]
[1673876563814,253.2424305,23.335,23.31,16.64]
[1673876564135,219.05382355,23.334,23.31,16.64]
[1673876564350,17.0,23.333,23.31,16.64]
[1673876564537,246.76186001,23.333,23.31,16.64]
[1673876564749,88.16204213,23.332,23.31,16.64]
[1673876564970,17.0,23.331,23.31,16.64]
[1673876565292,115.10550764,23.331,23.31,16.64]
[1673876565499,108.8235441,23.33,23.31,16.64]
[1673876565921,32.18,23.33,23.31,16.64]
[1673876567376,17.0,23.329,23.31,16.64]
[1673876568022,49.18,23.329,23.31,16.64]
[1673876568227,17.0,23.329,23.31,16.64]
[1673876568437,32.17,23.334,23.31,16.64]
[1673876568645,17.0,23.333,23.31,16.64]
[1673876568963,157.53785792,23.333,23.31,16.64]
[1673876569173,32.17,23.332,23.31,16.64]
[1673876569376,17.0,23.331,23.31,16.64]
[1673876569581,80.89431382,23.331,23.31,16.64]
[1673876569904,169.05119125,23.33,23.31,16.64]
[1673876570116,32.18,23.33,23.31,16.64]
[1673876570526,32.17,23.331,23.31,16.64]
[1673876570733,32.18,23.329,23.31,16.64]
[1673876571066,21.46196354,23.333,23.31,16.64]
[1673876571276,32.18,23.328,23.31,16.64]
[1673876571491,49.17,23.332,23.31,16.64]
[1673876571888,55.65057049,23.332,23.31,16.64]
[1673876572111,70.63196354,23.332,23.31,16.64]
[1673876572535,55.65057049,23.332,23.31,16.64]
[1673876572745,70.63196354,23.332,23.31,16.64]
[1673876576622,49.17,23.332,23.31,16.64]
[1673876576832,32.17,23.332,23.31,16.64]
[1673876577890,38.65057049,23.332,23.31,16.64]
[1673876578100,17.0,23.331,23.31,16.64]
[1673876578310,113.7639,23.336,23.32,16.72]
[1673876578311,14.98139305,23.333,23.32,16.72]
[1673876578519,32.16,23.339,23.32,16.72]
[1673876578746,32.16,23.34,23.33,16.64]
[1673876578949,111.4488,23.346,23.33,16.64]
[1673876579165,32.16,23.345,23.33,16.64]
[1673876579690,45.12114098,23.345,23.33,16.64]
[1673876579893,38.64057049,23.345,23.33,16.64]
[1673876580089,32.16,23.345,23.33,16.64]
[1673876580743,21.46196354,23.344,23.33,16.64]
[1673876581370,32.16,23.343,23.33,16.64]
[1673876581675,12.96114098,23.342,23.32,16.72]
[1673876581902,17.0,23.341,23.32,16.72]
[1673876582081,49.16,23.341,23.32,16.72]
[1673876582504,21.46196354,23.34,23.32,16.72]
[1673876582730,14.98139305,23.34,23.32,16.72]
[1673876582923,49.16,23.339,23.32,16.72]
[1673876583348,32.16,23.345,23.33,16.72]
[1673876583894,111.4488,23.346,23.331,20.0]
[1673876586728,32.16,23.345,23.331,20.0]
[1673876586935,111.4488,23.346,23.331,20.0]
[1673876587356,32.16,23.345,23.331,20.0]
[1673876587876,111.4488,23.346,23.331,20.0]
[1673876590391,49.16,23.345,23.32,16.72]
[1673876590722,55.64057049,23.345,23.32,16.72]
[1673876590911,6.48057049,23.344,23.32,16.72]
[1673876591129,17.0,23.343,23.32,16.72]
[1673876591342,49.16,23.343,23.32,16.72]
[1673876591539,6.48057049,23.342,23.32,16.72]
[1673876591750,17.0,23.341,23.32,16.72]
[1673876591977,49.16,23.341,23.32,16.72]
[1673876592294,21.46196354,23.34,23.32,16.72]
[1673876592487,17.0,23.339,23.32,16.72]
[1673876592818,49.16,23.339,23.32,16.72]
[1673876593550,49.16,23.339,23.321,20.0]
[1673876593774,70.62196354,23.339,23.321,20.0]
[1673876596301,49.16,23.339,23.321,20.0]
[1673876601331,32.16,23.339,23.33,16.72]
[1673876601542,32.16,23.341,23.33,16.72]
[1673876601751,32.16,23.345,23.33,16.72]
[1673876601969,32.16,23.34,23.33,16.72]
[1673876602180,32.16,23.344,23.33,16.72]
[1673876602503,32.16,23.345,23.33,16.72]
[1673876602721,31.16,23.345,23.33,16.72]
[1673876603028,17.0,23.344,23.33,16.72]
[1673876603349,17.0,23.344,23.321,20.0]
[1673876603536,32.16,23.343,23.321,20.0]
[1673876603745,17.0,23.342,23.321,20.0]
[1673876604179,32.16,23.341,23.321,20.0]
[1673876604381,17.0,23.34,23.321,20.0]
[1673876604913,32.16,23.339,23.321,20.0]
[1673876605132,17.0,23.338,23.321,20.0]
[1673876605751,32.17,23.337,23.321,20.0]
[1673876605964,32.16,23.338,23.33,16.64]
[1673876606163,111.4488,23.346,23.33,16.64]
[1673876606164,32.16,23.345,23.33,16.64]
[1673876606379,111.4488,23.346,23.331,20.0]
[1673876608501,17.0,23.345,23.331,20.0]
[1673876609116,49.16,23.345,23.331,20.0]
[1673876609446,183.84057049,23.345,23.322,118.6774]
[1673876609636,6.48057049,23.344,23.322,118.6774]
[1673876609848,17.0,23.343,23.322,118.6774]
[1673876610077,49.16,23.343,23.322,118.6774]
[1673876610288,70.62196354,23.343,23.322,118.6774]
[1673876610501,70.62196354,23.343,23.32,16.72]
[1673876610709,198.82196354,23.343,23.321,20.0]
[1673876612060,177.36,23.343,23.321,20.0]
[1673876612809,14.98139305,23.342,23.321,20.0]
[1673876613013,17.0,23.341,23.321,20.0]
[1673876613219,128.2,23.34,23.32,16.72]
[1673876613417,128.2,23.34,23.3,135.72]
[1673876613418,16.72,23.33,23.3,85.72]
[1673876613624,4.91594,23.329,23.3,69.0]
[1673876613838,128.2,23.328,23.3,69.0]
[1673876614058,4.91594,23.327,23.3,69.0]
[1673876614268,145.2,23.326,23.3,69.0]
[1673876614466,4.91594,23.325,23.3,69.0]
[1673876614678,17.0,23.324,23.3,69.0]
[1673876614897,69.74810445,23.324,23.3,69.0]
[1673876615111,37.10594,23.323,23.3,69.0]
[1673876615307,17.0,23.322,23.3,69.0]
[1673876615515,101.21757675,23.322,23.3,69.0]
[1673876615723,47.83216445,23.321,23.3,69.0]
[1673876615958,114.16261793,23.321,23.3,85.72]
[1673876616151,36.3854123,23.321,23.3,85.72]
[1673876616778,47.83216445,23.325,23.301,20.0]
[1673876617425,17.0,23.324,23.301,20.0]
[1673876617836,47.83216445,23.323,23.301,20.0]
[1673876618054,17.0,23.322,23.301,20.0]
[1673876618256,32.18,23.326,23.301,20.0]
[1673876618471,117.8932,23.325,23.301,36.99795823]
[1673876618795,117.8932,23.325,23.31,16.64]
[1673876621309,17.0,23.324,23.31,16.64]
[1673876623212,49.18,23.324,23.301,20.0]
[1673876624246,17.0,23.324,23.301,20.0]
[1673876625098,69.37436445,23.324,23.301,20.0]
[1673876625418,32.19,23.323,23.301,20.0]
[1673876625611,17.0,23.322,23.301,20.0]
[1673876625825,101.55436445,23.324,23.301,20.0]
[1673876630446,114.51550543,23.324,23.301,20.0]
[1673876630876,101.55436445,23.324,23.301,20.0]
[1673876631725,114.51550543,23.324,23.301,20.0]
[1673876632246,101.55436445,23.324,23.301,20.0]
[1673876633301,21.46196354,23.323,23.301,20.0]
[1673876633509,17.0,23.322,23.301,20.0]
[1673876633823,32.19,23.322,23.301,20.0]
[1673876634141,17.0,23.321,23.301,20.0]
[1673876634326,32.19,23.321,23.301,20.0]
[1673876634536,17.0,23.32,23.301,20.0]
[1673876634756,32.19,23.32,23.301,20.0]
[1673876634963,17.0,23.319,23.301,20.0]
[1673876635382,17.0,23.32,23.301,20.0]
[1673876635588,17.0,23.322,23.301,20.0]
[1673876636122,32.19,23.321,23.301,20.0]
[1673876636329,52.37436445,23.324,23.302,17.0]
[1673876636534,52.37436445,23.324,23.31,16.72]
[1673876637612,117.8932,23.325,23.31,16.72]
[1673876638326,32.18,23.324,23.31,16.72]
[1673876639370,17.0,23.323,23.31,16.72]
[1673876639790,32.19,23.322,23.31,16.72]
[1673876640002,17.0,23.321,23.31,16.72]
[1673876640649,17.0,23.323,23.31,16.72]
[1673876641058,32.19,23.322,23.31,16.72]
[1673876641264,21.91594,23.321,23.301,20.0]
[1673876641476,21.91594,23.321,23.3,69.0]
[1673876641477,149.83594,23.32,23.3,69.0]
[1673876641793,150.11594,23.319,23.3,69.0]
[1673876642004,4.91594,23.318,23.3,69.0]
[1673876642217,17.0,23.317,23.3,69.0]
[1673876642650,128.2,23.315,23.3,1.2483]
[1673876642855,128.2,23.313,23.28,16.81]
[1673876643070,4.91594,23.312,23.28,16.81]
[1673876643275,16.72,23.31,23.28,16.81]
[1673876643602,39.20179163,23.309,23.28,16.81]
[1673876643807,17.0,23.308,23.28,16.81]
[1673876644334,66.37570784,23.307,23.29,16.72]
[1673876644653,66.37570784,23.307,23.28,16.81]
[1673876644862,32.21,23.307,23.28,16.81]
[1673876645260,34.16570784,23.314,23.28,16.81]
[1673876645474,32.2,23.309,23.29,16.64]
[1673876645682,34.28585163,23.318,23.29,16.64]
[1673876645683,32.2,23.313,23.29,16.64]
[1673876645912,32.21,23.308,23.29,16.64]
[1673876646112,32.2,23.312,23.291,20.0]
[1673876646317,128.2,23.326,23.291,20.0]
[1673876646528,32.2,23.311,23.291,20.0]
[1673876646747,6.48057049,23.319,23.291,20.0]
[1673876646961,32.2,23.31,23.291,20.0]
[1673876647273,14.98139305,23.316,23.291,20.0]
[1673876647475,32.2,23.309,23.291,20.0]
[1673876647686,17.0,23.308,23.291,20.0]
[1673876647885,49.21,23.308,23.291,20.0]
[1673876648097,17.0,23.308,23.291,20.0]
[1673876648317,32.21,23.307,23.291,20.0]
[1673876648737,17.0,23.308,23.291,20.0]
[1673876649157,32.2,23.314,23.291,20.0]
[1673876649355,17.0,23.313,23.291,20.0]
[1673876649783,32.2,23.312,23.29,16.64]
[1673876650004,17.0,23.311,23.29,16.64]
[1673876650230,77.5217048,23.311,23.29,16.64]
[1673876650431,32.2,23.31,23.29,16.64]
[1673876650643,17.0,23.309,23.29,16.64]
[1673876651058,32.21,23.308,23.29,16.64]
[1673876651270,32.21,23.308,23.283,114.6672]
[1673876651497,77.5217048,23.307,23.284,20.0]
[1673876651697,17.0,23.307,23.283,114.6672]
[1673876651891,17.0,23.307,23.282,111.9195]
[1673876651892,128.2,23.305,23.281,5.0]
[1673876652109,245.19034,23.304,23.281,5.0]
[1673876652321,17.0,23.303,23.281,5.0]
[1673876652537,133.11594,23.302,23.281,5.0]
[1673876652745,150.11594,23.301,23.281,5.0]
[1673876652962,156.59651049,23.301,23.281,5.0]
[1673876653172,47.20139305,23.3,23.281,5.0]
[1673876653377,17.0,23.299,23.281,5.0]
[1673876653595,29.96114098,23.299,23.281,5.0]
[1673876653811,32.22,23.298,23.281,5.0]
[1673876654007,17.0,23.297,23.281,5.0]
[1673876654435,32.22,23.296,23.281,5.0]
[1673876654631,17.0,23.295,23.281,5.0]
[1673876655063,32.23,23.294,23.281,5.0]
[1673876655283,17.0,23.293,23.281,5.0]
[1673876656231,49.23,23.293,23.281,5.0]
[1673876656428,17.0,23.293,23.281,5.0]
[1673876656639,32.23,23.292,23.281,5.0]
[1673876656971,17.0,23.291,23.281,5.0]
[1673876658112,32.22,23.299,23.281,5.0]
[1673876658310,17.0,23.298,23.281,5.0]
[1673876658520,32.22,23.298,23.281,5.0]
[1673876658734,17.0,23.297,23.281,5.0]
[1673876658937,32.22,23.297,23.281,5.0]
[1673876659146,17.0,23.296,23.281,5.0]
[1673876659373,32.22,23.296,23.281,5.0]
[1673876659589,17.0,23.295,23.281,5.0]
[1673876659912,32.22,23.295,23.281,5.0]
[1673876660106,17.0,23.294,23.281,5.0]
[1673876660428,32.23,23.294,23.281,5.0]
[1673876660639,17.0,23.293,23.281,5.0]
[1673876660849,17.0,23.295,23.281,5.0]
[1673876661052,32.22,23.297,23.281,5.0]
[1673876661053,32.23,23.294,23.281,5.0]
[1673876661260,17.0,23.293,23.281,5.0]
[1673876661478,32.22,23.295,23.281,5.0]
[1673876661673,32.23,23.292,23.281,5.0]
[1673876661882,32.23,23.294,23.281,5.0]
[1673876662093,32.23,23.291,23.281,5.0]
[1673876662304,32.23,23.293,23.281,5.0]
[1673876662540,191.87057049,23.29,23.26,24.99]
[1673876662759,128.2,23.288,23.26,24.99]
[1673876663055,170.11594,23.287,23.26,24.99]
[1673876663248,4.91594,23.286,23.26,24.99]
[1673876663459,17.0,23.285,23.26,24.99]
[1673876663670,133.11594,23.284,23.26,24.99]
[1673876663879,128.2,23.282,23.26,24.99]
[1673876664100,4.91594,23.282,23.26,24.99]
[1673876664308,49.24,23.281,23.26,24.99]
[1673876664734,62.20114098,23.281,23.26,24.99]
[1673876665355,157.39888404,23.28,23.25,25.15]
[1673876665565,150.11594,23.279,23.25,25.15]
[1673876665779,4.91594,23.278,23.25,25.15]
[1673876666005,17.0,23.277,23.25,25.15]
[1673876666206,182.36594,23.277,23.25,25.15]
[1673876666409,256.16094593,23.277,23.25,25.15]
[1673876666621,264.66176849,23.277,23.25,25.15]
[1673876667030,136.46176849,23.277,23.25,25.15]
[1673876667249,37.16594,23.277,23.26,25.15]
[1673876667450,32.25,23.277,23.26,25.15]
[1673876667661,32.24,23.286,23.26,25.15]
[1673876667888,150.5713,23.286,23.26,25.15]
[1673876668514,150.5713,23.286,23.27,25.15]
[1673876668711,150.5713,23.286,23.271,20.0]
[1673876668921,118.3313,23.286,23.271,20.0]
[1673876669347,32.24,23.285,23.271,20.0]
[1673876669576,67.14310204,23.285,23.271,20.0]
[1673876669793,14.98139305,23.284,23.261,20.0]
[1673876670307,32.24,23.283,23.261,20.0]
[1673876670518,32.24,23.283,23.26,25.15]
[1673876671053,32.24,23.285,23.26,25.15]
[1673876671245,32.24,23.282,23.26,25.15]
[1673876671459,32.24,23.285,23.26,25.15]
[1673876671658,17.0,23.284,23.26,25.15]
[1673876672089,32.24,23.283,23.26,25.15]
[1673876672301,17.0,23.282,23.261,20.0]
[1673876672826,118.3313,23.286,23.261,20.0]
[1673876672827,32.24,23.281,23.261,20.0]
[1673876673050,118.3313,23.286,23.27,25.15]
[1673876673051,32.24,23.285,23.27,25.15]
[1673876673237,32.24,23.285,23.271,20.0]
[1673876673971,53.70196354,23.285,23.271,20.0]
[1673876674500,17.0,23.284,23.271,20.0]
[1673876674726,31.98139305,23.284,23.271,20.0]
[1673876675037,32.24,23.283,23.261,20.0]
[1673876675245,17.0,23.282,23.261,20.0]
[1673876675669,32.24,23.283,23.261,20.0]
[1673876675670,32.24,23.281,23.261,20.0]
[1673876675862,32.24,23.283,23.261,20.0]
[1673876676074,128.2,23.297,23.27,25.15]
[1673876676075,32.23,23.292,23.27,25.15]
[1673876676288,145.554,23.293,23.271,20.0]
[1673876676515,145.554,23.293,23.28,25.15]
[1673876676729,32.23,23.293,23.281,20.0]
[1673876676951,32.21,23.305,23.281,20.0]
[1673876677158,32.21,23.302,23.281,20.0]
[1673876677366,32.21,23.304,23.281,20.0]
[1673876677683,113.324,23.309,23.29,25.15]
[1673876677684,32.22,23.301,23.29,25.15]
[1673876677900,32.21,23.303,23.291,20.0]
[1673876678086,32.21,23.308,23.291,20.0]
[1673876678632,32.2,23.311,23.291,20.0]
[1673876678847,147.7686,23.321,23.3,25.15]
[1673876679025,32.19,23.317,23.3,25.15]
[1673876679239,32.19,23.32,23.3,25.15]
[1673876679881,6.48057049,23.319,23.3,25.15]
[1673876680211,32.19,23.32,23.3,25.15]
[1673876680531,32.18,23.328,23.3,25.15]
[1673876680723,32.19,23.322,23.3,25.15]
[1673876681047,20.0,23.327,23.3,25.15]
[1673876681048,73.64196354,23.327,23.3,25.15]
[1673876681268,32.19,23.321,23.3,25.15]
[1673876681447,38.66057049,23.326,23.3,25.15]
[1673876681657,32.19,23.32,23.3,25.15]
[1673876681886,32.18,23.325,23.3,25.15]
[1673876682085,32.19,23.319,23.3,25.15]
[1673876682301,20.0,23.327,23.3,25.15]
[1673876682302,17.0,23.318,23.3,25.15]
[1673876682627,49.19,23.318,23.3,25.15]
[1673876682822,14.98139305,23.317,23.3,25.15]
[1673876683036,17.0,23.316,23.3,25.15]
[1673876683359,32.19,23.317,23.3,25.15]
[1673876683549,32.2,23.315,23.3,25.15]
[1673876683756,32.2,23.316,23.3,25.15]
[1673876683966,53.60196354,23.314,23.291,20.0]
[1673876684291,21.40196354,23.314,23.291,20.0]
[1673876684498,32.2,23.313,23.291,20.0]
[1673876684707,17.0,23.312,23.291,20.0]
[1673876685254,32.2,23.311,23.291,20.0]
[1673876685466,17.0,23.31,23.291,20.0]
[1673876686831,17.0,23.312,23.291,20.0]
[1673876687042,32.21,23.309,23.291,20.0]
[1673876687252,17.0,23.308,23.291,20.0]
[1673876687555,17.0,23.308,23.29,25.15]
[1673876687786,17.0,23.31,23.29,25.15]
[1673876688192,32.21,23.309,23.29,25.15]
[1673876688401,17.0,23.308,23.29,25.15]
[1673876688829,49.21,23.308,23.29,25.15]
[1673876689037,17.0,23.308,23.29,25.15]
[1673876689242,17.0,23.31,23.29,25.15]
[1673876689656,32.21,23.309,23.29,25.15]
[1673876689868,17.0,23.308,23.29,25.15]
[1673876690307,32.21,23.308,23.29,25.15]
[1673876690506,17.0,23.307,23.29,25.15]
[1673876690717,32.21,23.309,23.29,25.15]
[1673876690915,21.46196354,23.307,23.29,25.15]
[1673876691128,17.0,23.306,23.29,25.15]
[1673876691357,49.21,23.306,23.29,25.15]
[1673876692813,64.25139305,23.306,23.29,25.15]
[1673876693459,64.25139305,23.306,23.29,25.08]
[1673876694392,128.2,23.305,23.28,24.89]
[1673876694724,17.0,23.304,23.28,24.89]
[1673876695035,64.25139305,23.304,23.28,24.89]
[1673876695232,12.84114098,23.303,23.28,24.89]
[1673876695442,17.0,23.302,23.28,24.89]
[1673876695651,49.21,23.302,23.28,24.89]
[1673876697647,32.21,23.302,23.28,24.89]
[1673876697851,116.75314,23.305,23.28,24.89]
[1673876697852,32.21,23.304,23.28,24.89]
[1673876698063,32.22,23.301,23.28,24.89]
[1673876698270,32.21,23.303,23.28,24.89]
[1673876698499,32.21,23.304,23.29,24.89]
[1673876698708,32.21,23.302,23.29,24.89]
[1673876698937,111.8372,23.305,23.29,24.89]
[1673876699535,38.63057049,23.304,23.29,24.89]
[1673876699744,53.67196354,23.304,23.28,24.89]
[1673876699950,17.0,23.303,23.28,24.89]
[1673876700193,38.46196354,23.303,23.28,24.89]
[1673876700400,32.21,23.302,23.28,24.89]
[1673876700604,17.0,23.301,23.28,24.89]
[1673876700918,32.21,23.302,23.28,24.89]
[1673876701322,32.21,23.304,23.28,24.89]
[1673876701639,32.21,23.304,23.29,24.89]
[1673876701850,111.8372,23.305,23.29,24.89]
[1673876703546,32.21,23.304,23.28,24.89]
[1673876703757,32.21,23.304,23.281,20.0]
[1673876703971,21.91594,23.303,23.28,24.89]
[1673876704157,4.91594,23.302,23.27,139.6005]
[1673876704374,17.0,23.301,23.27,139.6005]
[1673876704598,128.2,23.3,23.27,139.6005]
[1673876704811,21.91594,23.299,23.27,139.6005]
[1673876705023,4.91594,23.298,23.27,139.6005]
[1673876705235,145.2,23.297,23.27,139.6005]
[1673876705547,145.2,23.297,23.27,25.08]
[1673876705548,128.2,23.295,23.27,25.08]
[1673876705747,128.2,23.293,23.27,25.08]
[1673876705957,150.11594,23.292,23.27,25.08]
[1673876706173,4.91594,23.291,23.27,25.08]
[1673876706519,17.0,23.29,23.27,25.08]
[1673876707003,17.0,23.292,23.27,25.08]
[1673876707423,32.23,23.291,23.27,25.08]
[1673876707626,17.0,23.29,23.27,25.08]
[1673876708363,32.23,23.289,23.27,25.08]
[1673876708576,17.0,23.288,23.27,25.08]
[1673876709002,17.0,23.29,23.27,25.08]
[1673876710160,32.23,23.289,23.27,25.08]
[1673876710385,17.0,23.288,23.27,25.08]
[1673876710924,38.46196354,23.288,23.27,25.08]
[1673876711139,32.24,23.287,23.27,25.08]
[1673876711351,17.0,23.286,23.27,25.08]
[1673876711773,29.84114098,23.286,23.27,25.08]
[1673876712086,32.24,23.285,23.27,25.08]
[1673876712295,17.0,23.284,23.27,25.08]
[1673876713427,17.0,23.286,23.27,25.08]
[1673876715660,128.2,23.285,23.262,25.58050459]
[1673876715972,21.91594,23.284,23.262,25.58050459]
[1673876716160,17.0,23.284,23.26,24.89]
[1673876716369,152.102,23.283,23.27,25.08]
[1673876716580,32.24,23.285,23.27,25.08]
[1673876716807,32.24,23.282,23.27,25.08]
[1673876717015,119.862,23.29,23.27,25.08]
[1673876717016,32.24,23.284,23.27,25.08]
[1673876717232,32.24,23.281,23.27,25.08]
[1673876717424,32.23,23.289,23.27,25.08]
[1673876717645,20.0,23.288,23.27,25.08]
[1673876718057,32.24,23.287,23.27,25.08]
[1673876718267,20.0,23.286,23.27,25.08]
[1673876718688,49.24,23.285,23.262,25.58050459]
[1673876718901,153.32,23.28,23.262,25.58050459]
[1673876719108,4.91594,23.279,23.262,25.58050459]
[1673876719327,17.0,23.278,23.262,25.58050459]
[1673876719750,32.25,23.277,23.262,25.58050459]
[1673876720065,17.0,23.276,23.262,25.58050459]
[1673876721221,219.36122353,23.275,23.262,25.58050459]
[1673876721558,128.2,23.273,23.24,25.05]
[1673876721753,128.2,23.271,23.24,25.05]
[1673876721952,21.91594,23.27,23.24,25.05]
[1673876722270,67.01708098,23.27,23.24,25.05]
[1673876722470,197.23667658,23.269,23.24,25.05]
[1673876722672,17.0,23.268,23.24,25.05]
[1673876723004,25.62082256,23.268,23.24,25.05]
[1673876723213,53.99528353,23.267,23.25,25.08]
[1673876723424,17.0,23.266,23.25,25.08]
[1673876723949,42.80139472,23.265,23.25,25.08]
[1673876724142,17.0,23.264,23.25,25.08]
[1673876724353,32.25,23.273,23.25,25.08]
[1673876724666,48.59445953,23.269,23.25,25.08]
[1673876724880,147.9854,23.276,23.25,25.08]
[1673876725092,73.04703009,23.268,23.25,25.08]
[1673876725521,21.46196354,23.275,23.25,25.08]
[1673876725728,147.9854,23.276,23.25,25.08]
[1673876725956,32.24,23.285,23.26,25.09]
[1673876726173,151.1215,23.282,23.26,25.09]